{"text_format":"1","workbook":"xlsx","n_sheets":1,"sheets":["Sheet1"],"not_rendered":{"charts":0,"images":2,"macros":0,"external_links":0,"defined_names":1,"comments":0,"pivot_tables":0},"unopened":[],"bounds":{"document_bytes":16777216,"sheet_cells":100000,"rows_first":2000,"rows_last":500,"rows_between":2000,"halvings":0,"cell_chars":16384,"cell_head_chars":4096},"cells_cut":0,"cells_raw":0,"read":"whole","date_system":"1900"}

{"sheet":"Sheet1","index":0,"n_rows":91,"n_cols":7,"rows_kept":91,"cut":false,"hidden":false,"merged":[[17,8,17,9],[22,5,22,6],[23,5,23,6],[89,4,89,5],[3,4,3,6],[60,4,60,6],[4,4,4,6],[58,4,59,6],[0,4,0,6],[1,4,2,6],[57,4,57,6],[18,5,19,6],[25,3,25,4],[5,1,5,6],[20,1,20,2],[26,1,26,6],[63,1,63,6],[65,1,65,6],[37,1,37,6],[61,4,62,6]]}
[null,null,null,null,"Paton Group"]
[null,null,null,null,"787 W. Woodbury Rd., #10\nAltadena, CA 91001\n800.826.0570"]
[]
[null,null,null,null,"Email order form to: patonpo@patongroup.com "]
[null,null,null,null,"Or fax to: 626.791.1476"]
[null,"ROKENBOK - Credit Card Order Form "]
[]
[null,"PO #"]
[null,"Order Date"]
[null,"Organization Name (req'd)"]
[null,"Ship to Address (req'd)"]
[null,"Bill to Address (req'd)"]
[null,"Contact Person (req'd)"]
[null,"Phone # (req'd)"]
[null,"Title/Position"]
[null,"E-Mail (req'd)"]
[]
[null,"Name on Credit Card\nConvenience Charge:2% Visa/MC, 3% AMEX",null,null,null,"Grand Total*",{"$f":"SUM(G89,G57)","v":0}]
[null,"CC Billing Address",null,null,null,"*Grand Total doesn't include any applicable taxes or shipping"]
[null,"E-Mail"]
[null,"We will call you for card information - please do not email card info. "]
[]
[null,"Shipping Priority","Please specify shipping method i.e. Ground, 3Day, 2Day or Overnight\n",null,null,"Shipping Notes:"]
[null,"Shipping Account"]
[]
[null,"Part Number","Description","Price ",null,"QTY ordered","Sub Total"]
[null,"Mobile STEM Labs"]
[null,35037,"ROK Blocks Module",null,299.99,null,{"$f":"E28*F28","v":0}]
[null,35039,"ROK Blocks Mobile STEM Lab (3 Modules)",null,899.99,null,0]
[null,35031,"SnapStack Module",null,169.99,null,0]
[null,35033,"SnapStack Mobile STEM Lab (6 Modules)",null,999.99,null,0]
[null,35029,"Advanced Projects Mobile STEM Lab",null,1299.99,null,0]
[null,35041,"Basic Robotics Module",null,249.99,null,0]
[null,35043,"Basic Robotics Mobile STEM Lab (6 Modules)",null,1499.99,null,0]
[null,35045,"Programmable Robotics Module",null,649.99,null,0]
[null,35047,"Programmable Robotics Mobile STEM Lab (3 Modules)",null,1949.99,null,0]
[null,"20-00413","Wheeled Base",null,99.99,null,0]
[null,"Component Part Sets"]
[null,8297,"Maker ROK Bot Chassis",null,99.99,null,0]
[null,"20-00346","Rokenbok Tool (6)",null,5.99,null,0]
[null,10917,"Blue Blocks (72)",null,19.989999999999998,null,0]
[null,10915,"Red Blocks (72)",null,19.989999999999998,null,0]
[null,24801,"Risers (72)",null,19.989999999999998,null,0]
[null,"20-00349","Single Snap Block (24)",null,9.99,null,0]
[null,24821,"Double Snap Block (24)",null,12.99,null,0]
[null,"20-00356","Full Beams (48)",null,29.99,null,0]
[null,"20-00347","Half Beams (48)",null,24.99,null,0]
[null,"20-00341","Curved Beams (24)",null,19.989999999999998,null,{"$f":"E48*R48","v":0}]
[null,"20-00357","Small Curved Beams (24)",null,24.99,null,0]
[null,24823,"Mini Curved Beams (24)",null,19.989999999999998,null,0]
[null,4817,"S-Beams (12)",null,19.989999999999998,null,0]
[null,"20-00327","Gear Teeth (160)",null,24.99,null,0]
[null,"04890","ROK Balls (50/50)",null,7.99,null,0]
[null,"20-00348","Trailer Hitch (24)",null,9.99,null,0]
[null,"20-00355","Snap-on Wheels (24)",null,19.989999999999998,null,0]
[null,"20-00352","Axle Block (24)",null,12.99,null,{"$f":"E56*F56","v":0}]
[null,null,null,null,null,"Pg 1 sub-total",{"$f":"SUM(G28:G56)","v":0}]
[null,null,null,null,"Paton Group"]
[null,null,null,null,"787 W. Woodbury Rd., #10\nAltadena, CA 91001\n800.826.0570"]
[]
[null,null,null,null,"Email order form to: patonpo@patongroup.com "]
[null,null,null,null,"Or fax to: 626.791.1476"]
[]
[null,"ROKENBOK - Credit Card Order Form "]
[null,"Part Number","Description",null,"Price","QTY ordered","Sub Total"]
[null,"Component Part Sets (cont.)"]
[null,"20-00353","Hinge Block (24)",null,12.99,null,{"$f":"E67*F67","v":0}]
[null,"20-00254","Pulley Block (24)",null,12.99,null,0]
[null,"20-00351","30 Degree Block (24)",null,9.99,null,0]
[null,"20-00350","60 Degree Block (24)",null,9.99,null,0]
[null,"20-00339","String Blocks w/String (6)",null,9.99,null,0]
[null,"20-00342","Corbels (24)",null,9.99,null,0]
[null,"20-00343","Girder (24)",null,9.99,null,0]
[null,"20-00344","Two Way Brace (24)",null,9.99,null,0]
[null,"20-00345","Three Way Brace (24)",null,9.99,null,0]
[null,24807,"Snap in Spool & Cog (1 of each)",null,9.99,null,0]
[null,24865,"Lead Screw Assembly Set",null,15.99,null,0]
[null,24819,"Scoop, Bed, Blade, Forks Set (1 of each)",null,15.99,null,0]
[null,24803,"Motor Module w/M-M Cable (1 of each)",null,24.99,null,0]
[null,24805,"Bearing Module (1)",null,9.99,null,0]
[null,24815,"M-M Cable (2)",null,12.99,null,0]
[null,24817,"M-F Cable (2)",null,12.99,null,0]
[null,24825,"Snap-in Seat (4)",null,9.99,null,0]
[null,24827,"ROK Block Wedge (24)",null,24.99,null,0]
[null,24829,"ROK Block 2x2 (24)",null,24.99,null,0]
[null,24831,"ROK Block 2x3 (24)",null,29.99,null,0]
[null,24833,"ROK Block 2x4 (24)",null,29.99,null,0]
[null,10941,"Forks (1)",null,6.99,null,{"$f":"E88*F88","v":0}]
[null,null,null,null,null,"Pg 2 sub-total",{"$f":"SUM(G67:G88)","v":0}]
[null,null,null,null,"Grand Total*",null,{"$f":"G89+G57","v":0}]
[null,null,null,null,"*Grand Total does not include any applicable taxes or shipping"]